fUST/lending_fUST_20241114
["ID","MTS","AMOUNT","RATE_DAILY","PERIOD"]
[342185679,1731568239172,-1163.622679,0.00016676,2]
[342185680,1731568239181,-1163.622679,0.00016676,2]
[342185681,1731568239191,-1163.622679,0.00016676,2]
[342185682,1731568239201,-1163.622679,0.00016676,2]
[342185683,1731568239211,-1163.6226785,0.00016676,2]
[342185684,1731568239220,-1307.186732,0.00016676,2]
[342185685,1731568239230,-1307.186732,0.00016676,2]
[342185686,1731568239240,-1307.186732,0.00016676,2]
[342185687,1731568239249,-1307.186732,0.00016676,2]
[342185688,1731568239259,-1307.186732,0.00016676,2]
[342185689,1731568239269,-1307.186732,0.00016676,2]
[342185690,1731568239279,-1307.186732,0.00016676,2]
[342185691,1731568239288,-1307.186732,0.00016676,2]
[342185692,1731568239298,-1307.186732,0.00016676,2]
[342185693,1731568239313,-1307.186732,0.00016676,2]
[342185694,1731568239323,-1307.186732,0.00016676,2]
[342185695,1731568239332,-1307.186732,0.00016676,2]
[342185696,1731568239342,-1307.186732,0.00016676,2]
[342185697,1731568239354,-1307.186732,0.00016676,2]
[342185698,1731568239363,-1307.186732,0.00016676,2]
[342185699,1731568239373,-1307.186732,0.00016676,2]
[342185700,1731568239382,-1307.186732,0.00016676,2]
[342185701,1731568239394,-1307.186732,0.00016676,2]
[342185702,1731568239404,-1307.186732,0.00016676,2]
[342185703,1731568239414,-1307.186732,0.00016676,2]
[342185704,1731568239424,-151.0,0.00016677,2]
[342185705,1731568239434,-151.0,0.00016677,2]
[342185706,1731568239445,-151.0,0.00016677,2]
[342185707,1731568239454,-151.0,0.00016677,2]
[342185708,1731568239464,-151.0,0.00016677,2]
[342185709,1731568239474,-293.823046,0.00016677,2]
[342185710,1731568239484,-4760.481665,0.00016677,2]
[342185711,1731568239494,-4760.481665,0.00016677,2]
[342185712,1731568239504,-4760.481665,0.00016677,2]
[342185713,1731568239514,-4760.481665,0.00016677,2]
[342185714,1731568239524,-4760.481665,0.00016677,2]
[342185715,1731568239533,-4760.481665,0.00016677,2]
[342185716,1731568239543,-4760.481665,0.00016677,2]
[342185717,1731568239554,-4760.481665,0.00016677,2]
[342185718,1731568239564,-4760.481665,0.00016677,2]
[342185719,1731568239574,-4760.481665,0.00016677,2]
[342185720,1731568239584,-4760.481665,0.00016677,2]
[342185721,1731568239594,-4760.481665,0.00016677,2]
[342185722,1731568239603,-4760.481665,0.00016677,2]
[342185723,1731568239613,-4760.481665,0.00016677,2]
[342185724,1731568239622,-4760.481665,0.00016677,2]
[342185725,1731568239632,-4760.481665,0.00016677,2]
[342185726,1731568239641,-4760.481665,0.00016677,2]
[342185727,1731568239651,-4760.481665,0.00016677,2]
[342185728,1731568239660,-4760.481665,0.00016677,2]
[342185729,1731568239669,-4760.481667,0.00016677,2]
[342185730,1731568239679,-12689.88882721,0.00016678,2]
[342185731,1731568239689,-151.0,0.00016678,2]
[342185732,1731568239698,-151.0,0.00016678,2]
[342185733,1731568239709,-151.0,0.00016678,2]
[342185734,1731568239718,-151.0,0.00016678,2]
[342185735,1731568239727,-285.345715,0.00016678,2]
[342185738,1731568239737,-481.75184776,0.00016678,2]
[342185740,1731568239746,-151.0,0.00016679,2]
[342185742,1731568239756,-152.349148,0.00016679,2]
[342185744,1731568239765,-222.388897,0.00016679,2]
[342185746,1731568239777,-222.388897,0.00016679,2]
[342185748,1731568239786,-222.388897,0.00016679,2]
[342185750,1731568239796,-222.388897,0.00016679,2]
[342185752,1731568239808,-222.388897,0.00016679,2]
[342185754,1731568239818,-222.388897,0.00016679,2]
[342185756,1731568239827,-222.388897,0.00016679,2]
[342185758,1731568239837,-222.388897,0.00016679,2]
[342185760,1731568239847,-222.388897,0.00016679,2]
[342185762,1731568239856,-222.388897,0.00016679,2]
[342185764,1731568239866,-151.0,0.00016679,2]
[342185766,1731568239875,-151.0,0.00016679,2]
[342185768,1731568239884,-151.0,0.00016679,2]
[342185770,1731568239894,-209.520677,0.00016679,2]
[342185772,1731568239904,-352.71692,0.00016679,2]
[342185774,1731568239913,-352.71692,0.00016679,2]
[342185776,1731568239923,-352.71692,0.00016679,2]
[342185778,1731568239933,-352.71692,0.00016679,2]
[342185780,1731568239943,-352.71692,0.00016679,2]
[342185781,1731568239952,-352.71692,0.00016679,2]
[342185784,1731568239962,-352.71692,0.00016679,2]
[342185787,1731568239971,-352.71692,0.00016679,2]
[342185790,1731568239981,-352.71692,0.00016679,2]
[342185792,1731568239990,-352.71692,0.00016679,2]
[342185793,1731568240000,-151.0,0.00016679,2]
[342185795,1731568240009,-151.0,0.00016679,2]
[342185797,1731568240019,-153.797871,0.00016679,2]
[342185798,1731568240029,-151.0,0.00016679,2]
[342185800,1731568240038,-151.0,0.00016679,2]
[342185801,1731568240048,-151.0,0.00016679,2]
[342185802,1731568240059,-151.0,0.00016679,2]
[342185803,1731568240068,-151.0,0.00016679,2]
[342185804,1731568240078,-151.0,0.00016679,2]
[342185805,1731568240087,-151.0,0.00016679,2]
[342185806,1731568240100,-151.0,0.00016679,2]
[342185808,1731568240119,-151.0,0.00016679,2]
[342185810,1731568240138,-151.0,0.00016679,2]
[342185812,1731568240152,-151.0,0.0001668,2]
[342185813,1731568240164,-151.0,0.0001668,2]
[342185814,1731568240175,-151.0,0.0001668,2]
[342185815,1731568240185,-222.388897,0.0001668,2]
[342185816,1731568240195,-222.388897,0.0001668,2]
[342185817,1731568240204,-352.71692,0.0001668,2]
[342185818,1731568240213,-352.71692,0.0001668,2]
[342185819,1731568240223,-151.0,0.0001668,2]
[342185820,1731568240233,-151.0,0.0001668,2]
[342185821,1731568240243,-973.43164962,0.00016729,2]
[342185823,1731568240252,-152.487933,0.0001678,2]
[342185825,1731568240261,-151.0,0.0001678,2]
[342185826,1731568240270,-151.0,0.0001678,2]
[342185827,1731568240279,-222.388897,0.0001678,2]
[342185828,1731568240361,-222.388897,0.0001678,2]
[342185829,1731568240371,-352.71692,0.0001678,2]
[342185830,1731568240384,-352.71692,0.0001678,2]
[342185831,1731568240395,-151.0,0.0001678,2]
[342185832,1731568240404,-151.0,0.0001678,2]
[342185833,1731568240414,-973.43164962,0.00016804,2]
[342185834,1731568240423,-973.43164962,0.0001688,2]
[342185835,1731568240432,-150.112233,0.000169,2]
[342185836,1731568240442,-150.112233,0.000169,2]
[342185837,1731568240452,-500.0,0.00016916,2]
[342185838,1731568240462,-326.61195606,0.00016973,2]
[342185839,1731568240472,-310.3220463,0.00016973,2]
[342185840,1731568240481,-500.0,0.00016973,2]
[342185841,1731568240492,-500.0,0.00016973,2]
[342185842,1731568240501,-500.0,0.00016973,2]
[342185843,1731568240511,-500.72276724,0.00016973,2]
[342185844,1731568240520,-500.0,0.00016973,2]
[342185845,1731568240530,-500.70622727,0.00016973,2]
[342185846,1731568240539,-417.3524942,0.00016973,2]
[342185847,1731568240550,-500.0,0.00016973,2]
[342185848,1731568240561,-213.00867948,0.00016973,2]
[342185849,1731568240570,-500.0,0.00016973,2]
[342185850,1731568240580,-500.0,0.00016973,2]
[342185851,1731568240591,-500.0,0.00016973,2]
[342185852,1731568240602,-500.0,0.00016973,2]
[342185853,1731568240611,-201.86862721,0.00016973,2]
[342185854,1731568240621,-500.0,0.00016973,2]
[342185855,1731568240631,-500.0,0.00016973,2]
[342185856,1731568240640,-500.85937213,0.00016973,2]
[342185857,1731568240650,-500.0,0.00016973,2]
[342185858,1731568240659,-500.0,0.00016973,2]
[342185859,1731568240668,-500.0,0.00016973,2]
[342185860,1731568240677,-500.0,0.00016973,2]
[342185861,1731568240687,-305.74725891,0.00016973,2]
[342185862,1731568240696,-500.0,0.00016973,2]
[342185863,1731568240706,-151.0,0.00016973,2]
[342185864,1731568240715,-151.0,0.00016973,2]
[342185865,1731568240725,-277.542994,0.00016973,2]
[342185866,1731568240735,-222.388897,0.00016973,2]
[342185867,1731568240745,-222.388897,0.00016973,2]
[342185868,1731568240754,-222.388897,0.00016973,2]
[342185869,1731568240764,-222.388897,0.00016973,2]
[342185870,1731568240773,-352.71692,0.00016973,2]
[342185871,1731568240784,-352.71692,0.00016973,2]
[342185872,1731568240794,-352.71692,0.00016973,2]
[342185873,1731568240806,-352.71692,0.00016973,2]
[342185874,1731568240816,-151.0,0.00016973,2]
[342185875,1731568240826,-151.0,0.00016973,2]
[342185876,1731568240836,-155.475568,0.00016973,2]
[342185877,1731568240845,-589253.84264855,0.0001698,2]
[342185878,1731568241031,-127318.14256105,0.0001698,2]
[342185879,1731568241062,-995.53844855,0.0001698,2]
[342185880,1731568241074,-862333.64435046,0.0001698,2]
[342185881,1731568241113,-538.29369503,0.0001698,2]
[342185882,1731568241125,-18396.67769961,0.0001698,2]
[342185883,1731568241137,-16368.56728653,0.0001698,2]
[342185898,1731568243271,-1921.60997685,0.00016936,2]
[342185899,1731568243285,-1651.22202315,0.00016936,2]
[342185900,1731568243295,-21714.12654888,0.0001698,2]
[342185902,1731568243311,-12199.40728157,0.0001698,2]
[342185905,1731568243343,-9960.59200291,0.0001698,2]
[342185921,1731568246197,-539.70933175,0.0001688,2]
[342185925,1731568247707,520.04,0.00010959,2]
[342185930,1731568980320,157.797,0.000264,60]
[342185952,1731569369143,-160.0,0.00013973,2]
[342185953,1731569369166,-134.0,0.00014156,2]
[342185984,1731569432308,-1360.28974726,0.00014156,2]
[342185989,1731569432351,-412.60757393,0.00014156,2]
[342185991,1731569432362,-410.59100478,0.00014156,2]
[342185995,1731569432391,-682.51167403,0.00014156,2]
[342185997,1731569432400,-589.41791164,0.00014235,2]
[342186000,1731569432412,-358.11387436,0.00014235,2]
[342186002,1731569432422,-211.04295,0.00014248,2]
[342186004,1731569432432,-44.01144312,0.00014362,2]
[342186041,1731569438468,-12917.78343538,0.00014362,2]
[342186042,1731569438570,-272.45505093,0.0001487,2]
[342186044,1731569438580,-571.58391307,0.0001487,2]
[342186046,1731569438589,-947.531786,0.0001492,2]
[342186048,1731569438599,-333.04129163,0.00015372,2]
[342186049,1731569438608,-300.0,0.00015372,2]
[342186050,1731569438618,-300.0,0.00015372,2]
[342186052,1731569438628,-500.0,0.00015373,2]
[342186054,1731569438637,-500.0,0.00015373,2]
[342186056,1731569438646,-500.0,0.00015373,2]
[342186058,1731569438655,-500.0,0.00015373,2]
[342186060,1731569438664,-503.7598703,0.00015373,2]
[342186062,1731569438673,-500.0,0.00015373,2]
[342186064,1731569438688,-500.0,0.00015373,2]
[342186066,1731569438698,-500.0,0.00015373,2]
[342186067,1731569438707,-500.0,0.00015373,2]
[342186068,1731569438721,-600.33638039,0.00015373,2]
[342186069,1731569438732,-506.15118949,0.00015373,2]
[342186070,1731569438742,-500.0,0.00015373,2]
[342186071,1731569438752,-500.67316589,0.00015373,2]
[342186072,1731569438763,-500.0,0.00015373,2]
[342186073,1731569438774,-500.0,0.00015373,2]
[342186074,1731569438783,-500.0,0.00015373,2]
[342186075,1731569438792,-501.31059989,0.00015373,2]
[342186076,1731569438801,-500.0,0.00015373,2]
[342186077,1731569438810,-506.43341223,0.00015373,2]
[342186078,1731569438819,-500.0,0.00015399,2]
[342186079,1731569438829,-500.0,0.00015399,2]
[342186080,1731569438838,-500.0,0.00015399,2]
[342186081,1731569438847,-303.69004134,0.00015399,2]
[342186082,1731569438856,-215.16830629,0.00015399,2]
[342186083,1731569438866,-285.29129966,0.00015399,2]
[342186084,1731569438875,-196.12659393,0.00015399,2]
[342186085,1731569438884,-198.13205462,0.00015399,2]
[342186086,1731569438893,-500.0,0.00015399,2]
[342186087,1731569438903,-500.0,0.00015399,2]
[342186088,1731569438912,-299.21528157,0.00015399,2]
[342186089,1731569438921,-500.0,0.00015399,2]
[342186090,1731569438931,-500.0,0.00015399,2]
[342186091,1731569438940,-500.0,0.00015399,2]
[342186092,1731569438950,-500.0,0.00015399,2]
[342186093,1731569438963,-500.0,0.00015399,2]
[342186094,1731569438972,-500.0,0.00015399,2]
[342186095,1731569438981,-500.0,0.00015399,2]
[342186096,1731569438991,-500.0,0.00015399,2]
[342186097,1731569439000,-500.0,0.00015399,2]
[342186098,1731569439009,-500.0,0.00015399,2]
[342186099,1731569439018,-604.75159993,0.00015399,2]
[342186100,1731569439027,-500.0,0.00015399,2]
[342186101,1731569439036,-500.0,0.00015399,2]
[342186102,1731569439045,-500.0,0.00015399,2]
[342186103,1731569439054,-500.0,0.00015399,2]
[342186104,1731569439064,-500.0,0.00015399,2]
[342186105,1731569439073,-422.40109708,0.00015399,2]
[342186106,1731569439082,-499.99999999,0.00015399,2]
[342186107,1731569439091,-1145.8808737,0.000154,2]
[342186108,1731569439101,-822901.92710715,0.000154,2]
[342186109,1731569439153,-452.30146993,0.000154,2]
[342186115,1731569440418,-4097.51449374,0.000154,2]
[342186116,1731569440430,-954.834516,0.000154,2]
[342186126,1731569443481,-9567.43915636,0.000154,2]
[342186147,1731569446309,-8620.49770812,0.000154,2]
[342186154,1731569469676,423.27,0.00010959,2]
[342186157,1731570559109,-186.6225648,0.000132,2]
[342186158,1731570559131,-300.0,0.00013872,2]
[342186159,1731570559153,-300.0,0.00013872,2]
[342186160,1731570559173,-5432.60278252,0.00013873,2]
[342186200,1731570633883,-623.24678525,0.00013789,2]
[342186201,1731570633893,-135.20982517,0.00013872,2]
[342186208,1731570638655,-164.79017483,0.00013872,2]
[342186212,1731570638664,-300.0,0.00013872,2]
[342186213,1731570638778,-5473.57590817,0.00013873,2]
[342186214,1731570638790,-1967.14760964,0.00013873,2]
[342186215,1731570638803,-6402.19999998,0.00013873,2]
[342186216,1731570638819,-5089.00679829,0.00013873,2]
[342186217,1731570638828,-2351.3779493,0.00013889,2]
[342186218,1731570638837,-1572.21627682,0.00013947,2]
[342186219,1731570638846,-24900.0,0.00013947,2]
[342186220,1731570638855,-160.0,0.00013973,2]
[342186221,1731570638864,-1019.530531,0.00014317,2]
[342186222,1731570638873,-1019.530531,0.00015002,2]
[342186223,1731570638884,-420.0,0.00015199,2]
[342186224,1731570638893,-420.0,0.00015259,2]
[342186225,1731570638902,-8029.68061465,0.00015288,2]
[342186226,1731570638911,-4555.00939199,0.000153,2]
[342186227,1731570638920,-7052.70770288,0.00015372,2]
[342186228,1731570638929,-500.0,0.00015373,2]
[342186229,1731570638938,-500.0,0.00015373,2]
[342186230,1731570638947,-600.33638039,0.00015373,2]
[342186231,1731570638956,-506.15118949,0.00015373,2]
[342186232,1731570638965,-500.0,0.00015373,2]
[342186233,1731570638974,-500.0,0.00015373,2]
[342186234,1731570638983,-500.67316589,0.00015373,2]
[342186235,1731570638993,-500.0,0.00015373,2]
[342186236,1731570639002,-500.0,0.00015373,2]
[342186237,1731570639011,-580.96706358,0.00015373,2]
[342186238,1731570639020,-503.7598703,0.00015373,2]
[342186239,1731570639029,-500.0,0.00015373,2]
[342186240,1731570639038,-500.0,0.00015373,2]
[342186241,1731570639047,-500.0,0.00015373,2]
[342186242,1731570639056,-500.0,0.00015373,2]
[342186243,1731570639065,-500.0,0.00015373,2]
[342186244,1731570639077,-500.74048774,0.00015373,2]
[342186245,1731570639086,-500.0,0.00015373,2]
[342186246,1731570639095,-500.0,0.00015373,2]
[342186247,1731570639104,-500.0,0.00015373,2]
[342186248,1731570639115,-503.97890222,0.00015373,2]
[342186249,1731570639124,-500.0,0.00015373,2]
[342186250,1731570639133,-500.0,0.00015373,2]
[342186251,1731570639143,-183.80607118,0.00015398,2]
[342186252,1731570639154,-500.0,0.00015398,2]
[342186253,1731570639164,-500.0,0.00015398,2]
[342186254,1731570639172,-500.0,0.00015398,2]
[342186255,1731570639182,-152.63797346,0.00015398,2]
[342186256,1731570639191,-227.12562855,0.00015398,2]
[342186257,1731570639200,-500.0,0.00015398,2]
[342186258,1731570639209,-500.0,0.00015398,2]
[342186259,1731570639218,-500.0,0.00015398,2]
[342186260,1731570639228,-500.0,0.00015398,2]
[342186261,1731570639237,-500.0,0.00015398,2]
[342186262,1731570639246,-500.0,0.00015398,2]
[342186263,1731570639255,-500.0,0.00015398,2]
[342186264,1731570639263,-500.0,0.00015398,2]
[342186265,1731570639272,-500.0,0.00015398,2]
[342186266,1731570639281,-500.0,0.00015398,2]
[342186267,1731570639290,-500.0,0.00015398,2]
[342186268,1731570639299,-500.0,0.00015398,2]
[342186269,1731570639309,-500.0,0.00015398,2]
[342186270,1731570639318,-500.0,0.00015398,2]
[342186271,1731570639328,-500.0,0.00015398,2]
[342186272,1731570639338,-500.0,0.00015398,2]
[342186273,1731570639348,-500.0,0.00015398,2]
[342186274,1731570639358,-500.0,0.00015398,2]
[342186275,1731570639367,-265.90109707,0.00015398,2]
[342186276,1731570639376,-295.25822828,0.00015398,2]
[342186277,1731570639391,-500.0,0.00015398,2]
[342186278,1731570639400,-500.0,0.00015398,2]
[342186279,1731570639409,-500.0,0.00015398,2]
[342186280,1731570639418,-500.0,0.00015398,2]
[342186281,1731570639427,-500.0,0.00015398,2]
[342186282,1731570639437,-500.0,0.00015398,2]
[342186283,1731570639447,-500.0,0.00015398,2]
[342186284,1731570639456,-500.0,0.00015398,2]
[342186285,1731570639465,-500.0,0.00015398,2]
[342186286,1731570639475,-500.0,0.00015398,2]
[342186287,1731570639484,-500.0,0.00015398,2]
[342186288,1731570639494,-500.0,0.00015398,2]
[342186289,1731570639503,-500.0,0.00015398,2]
[342186290,1731570639512,-500.0,0.00015398,2]
[342186291,1731570639522,-500.0,0.00015398,2]
[342186292,1731570639531,-500.0,0.00015398,2]
[342186293,1731570639540,-500.0,0.00015398,2]
[342186294,1731570639549,-500.0,0.00015398,2]
[342186295,1731570639559,-500.0,0.00015398,2]
[342186296,1731570639568,-500.0,0.00015398,2]
[342186297,1731570639577,-500.0,0.00015398,2]
[342186298,1731570639586,-500.0,0.00015398,2]
[342186299,1731570639595,-500.0,0.00015398,2]
[342186300,1731570639604,-500.0,0.00015398,2]
[342186301,1731570639613,-500.0,0.00015398,2]
[342186302,1731570639622,-500.0,0.00015398,2]
[342186303,1731570639636,-500.0,0.00015398,2]
[342186304,1731570639645,-500.0,0.00015398,2]
[342186305,1731570639654,-454.21528157,0.00015398,2]
[342186306,1731570639663,-500.0,0.00015398,2]
[342186307,1731570639672,-500.0,0.00015398,2]
[342186308,1731570639681,-500.0,0.00015398,2]
[342186309,1731570639691,-500.0,0.00015398,2]
[342186310,1731570639701,-500.0,0.00015398,2]
[342186311,1731570639710,-500.0,0.00015398,2]
[342186312,1731570639720,-500.0,0.00015398,2]
[342186313,1731570639730,-500.0,0.00015398,2]
[342186314,1731570639739,-359.43961639,0.00015399,2]
[342186315,1731570639749,-241.1070124,0.00015399,2]
[342186316,1731570639758,-500.0,0.00015399,2]
[342186317,1731570639767,-300.0,0.00015399,2]
[342186318,1731570639776,-287.89077137,0.00015399,2]
[342186319,1731570639786,-748016.06466727,0.000154,2]
[342186320,1731570639799,-257.09,0.000154,2]
[342186321,1731570639810,-319.2398709,0.000154,2]
[342186338,1731570643784,-500.0,0.00015373,2]
[342186339,1731570643795,-500.0,0.00015398,2]
[342186340,1731570643804,-500.0,0.00015398,2]
[342186341,1731570643816,-500.0,0.00015398,2]
[342186342,1731570643825,-500.0,0.00015398,2]
[342186343,1731570643835,-500.0,0.00015398,2]
[342186344,1731570643844,-500.0,0.00015398,2]
[342186345,1731570643854,-500.0,0.00015398,2]
[342186346,1731570643863,-500.0,0.00015398,2]
[342186347,1731570643872,-500.0,0.00015398,2]
[342186348,1731570643881,-500.0,0.00015398,2]
[342186349,1731570643895,-500.0,0.00015398,2]
[342186350,1731570643909,-500.0,0.00015398,2]
[342186351,1731570643919,-500.0,0.00015398,2]
[342186352,1731570643928,-500.0,0.00015398,2]
[342186353,1731570643937,-500.0,0.00015398,2]
[342186354,1731570643946,-500.0,0.00015398,2]
[342186355,1731570643956,-500.0,0.00015398,2]
[342186356,1731570643966,-500.0,0.00015398,2]
[342186357,1731570643975,-500.0,0.00015398,2]
[342186358,1731570643984,-500.0,0.00015398,2]
[342186359,1731570643993,-500.0,0.00015398,2]
[342186360,1731570644005,-202.25777096,0.00015398,2]
[342186361,1731570644015,-500.0,0.00015398,2]
[342186362,1731570644024,-500.0,0.00015398,2]
[342186363,1731570644033,-500.0,0.00015398,2]
[342186364,1731570644042,-500.0,0.00015398,2]
[342186365,1731570644051,-500.0,0.00015398,2]
[342186366,1731570644060,-500.0,0.00015398,2]
[342186367,1731570644070,-500.0,0.00015398,2]
[342186368,1731570644083,-500.0,0.00015398,2]
[342186369,1731570644092,-500.0,0.00015398,2]
[342186370,1731570644101,-500.0,0.00015398,2]
[342186371,1731570644110,-500.0,0.00015398,2]
[342186372,1731570644119,-500.0,0.00015398,2]
[342186373,1731570644128,-12493.35184431,0.000154,2]
[342186374,1731570644143,-3549.13385432,0.000154,2]
[342186375,1731570644212,-500.0,0.00015398,2]
[342186376,1731570644221,-500.0,0.00015398,2]
[342186377,1731570644231,-500.0,0.00015398,2]
[342186378,1731570644240,-500.0,0.00015398,2]
[342186379,1731570644249,-500.0,0.00015398,2]
[342186380,1731570644258,-500.0,0.00015398,2]
[342186381,1731570644267,-9460.10430743,0.000154,2]
[342186401,1731570897166,196.37,0.00010959,2]
[342186402,1731570907638,163.64,0.00010959,2]
[342186403,1731570913327,157.834,0.00027,60]
[342186404,1731570918130,818.21,0.00010959,2]
[342186405,1731571019594,512.89013564,0.00027,60]
[342186406,1731571106778,172.19421389,0.00027,60]
[342186407,1731571388786,2000.0,0.00027,60]
[342186409,1731571611149,-384.23066964,0.00013502,2]
[342186459,1731571832605,-651.30853062,0.00012595,2]
[342186460,1731571832614,-300.0,0.00012694,2]
[342186461,1731571832625,-3960.63076726,0.00012695,2]
[342186472,1731571832797,-20939.36923274,0.00012695,2]
[342186474,1731571832806,-250.0,0.00012695,2]
[342186476,1731571832816,-915.66543666,0.00013502,2]
[342186478,1731571832825,-33028.4706942,0.0001368,2]
[342186479,1731571832835,-298.0481193,0.00013699,2]
[342186480,1731571832844,-472.696826,0.00013699,2]
[342186482,1731571832854,-5716.908466,0.00013699,2]
[342186484,1731571832863,-230.46928937,0.00013723,2]
[342186486,1731571832871,-3000.0,0.00013823,2]
[342186488,1731571832883,-420.0,0.00013964,2]
[342186490,1731571832892,-160.0,0.00013973,2]
[342186492,1731571832901,-1048.14418455,0.00014122,2]
[342186494,1731571832910,-161.4574547,0.00014123,2]
[342186495,1731571832920,-500.0,0.00014123,2]
[342186497,1731571832929,-500.0,0.00014123,2]
[342186499,1731571832938,-500.0,0.00014123,2]
[342186501,1731571832948,-188.55764349,0.00014123,2]
[342186502,1731571832957,-5716.908466,0.00014384,2]
[342186504,1731571832966,-194.76358577,0.00014407,2]
[342186506,1731571832976,-257.0511559,0.00014501,2]
[342186508,1731571832987,-1098.9506276,0.00014507,2]
[342186510,1731571832999,-5716.908466,0.00015068,2]
[342186512,1731571833008,-8618.1791657,0.00015145,2]
[342186514,1731571833018,-152.0,0.00015236,2]
[342186516,1731571833027,-2920.29494886,0.000153,2]
[342186518,1731571833037,-587.0,0.0001536,2]
[342186520,1731571833046,-500.0,0.00015372,2]
[342186522,1731571833056,-157.91152016,0.00015372,2]
[342186524,1731571833065,-500.0,0.00015372,2]
[342186526,1731571833075,-500.0,0.00015372,2]
[342186528,1731571833084,-500.0,0.00015372,2]
[342186530,1731571833093,-500.0,0.00015372,2]
[342186532,1731571833103,-337.68299112,0.00015372,2]
[342186534,1731571833112,-500.0,0.00015372,2]
[342186536,1731571833121,-500.0,0.00015372,2]
[342186538,1731571833133,-500.0,0.00015372,2]
[342186539,1731571833142,-500.0,0.00015372,2]
[342186541,1731571833151,-500.0,0.00015372,2]
[342186543,1731571833160,-500.0,0.00015372,2]
[342186545,1731571833170,-500.0,0.00015372,2]
[342186547,1731571833179,-500.0,0.00015372,2]
[342186549,1731571833189,-500.0,0.00015372,2]
[342186551,1731571833198,-500.0,0.00015372,2]
[342186553,1731571833208,-500.0,0.00015372,2]
[342186555,1731571833218,-500.0,0.00015372,2]
[342186557,1731571833228,-500.0,0.00015372,2]
[342186559,1731571833238,-500.0,0.00015372,2]
[342186561,1731571833247,-500.0,0.00015372,2]
[342186563,1731571833258,-500.0,0.00015372,2]
[342186565,1731571833268,-500.0,0.00015372,2]
[342186568,1731571833283,-500.0,0.00015372,2]
[342186571,1731571833305,-500.0,0.00015372,2]
[342186573,1731571833322,-500.0,0.00015372,2]
[342186576,1731571833342,-500.0,0.00015372,2]
[342186579,1731571833362,-500.0,0.00015372,2]
[342186582,1731571833379,-500.0,0.00015372,2]
[342186585,1731571833397,-500.0,0.00015372,2]
[342186587,1731571833411,-500.0,0.00015372,2]
[342186590,1731571833428,-205.84190638,0.00015372,2]
[342186593,1731571833448,-500.0,0.00015372,2]
[342186596,1731571833471,-500.0,0.00015372,2]
[342186599,1731571833488,-500.0,0.00015372,2]
[342186602,1731571833506,-222.84013943,0.00015372,2]
[342186604,1731571833522,-500.0,0.00015372,2]
[342186607,1731571833539,-500.0,0.00015372,2]
[342186609,1731571833554,-500.0,0.00015372,2]
[342186611,1731571833568,-500.0,0.00015372,2]
[342186613,1731571833584,-500.0,0.00015372,2]
[342186616,1731571833598,-500.0,0.00015372,2]
[342186618,1731571833613,-500.0,0.00015372,2]
[342186620,1731571833631,-500.0,0.00015372,2]
[342186622,1731571833646,-500.0,0.00015372,2]
[342186624,1731571833660,-500.0,0.00015372,2]
[342186626,1731571833675,-500.0,0.00015372,2]
[342186628,1731571833690,-500.0,0.00015372,2]
[342186630,1731571833705,-500.0,0.00015372,2]
[342186632,1731571833719,-500.0,0.00015372,2]
[342186634,1731571833734,-500.0,0.00015372,2]
[342186635,1731571833748,-500.0,0.00015372,2]
[342186636,1731571833763,-500.0,0.00015372,2]